bitfinex-derivatives/quotes_ETHF0:USTF0_20251210
["timestamp","ask_amount","ask_price","bid_price","bid_amount"]
[1765392661378,0.00441248,3399.3,3399.2,0.14709]
[1765392661580,3.2078,3400.2,3400.1,6.5643]
[1765392661781,3.2078,3400.6,3399.9,1.9321]
[1765392661984,0.00347889,3400.2,3399.9,1.9321]
[1765392662289,0.00347889,3400.2,3400.1,0.14705]
[1765392662588,0.00347889,3400.2,3399.8,0.00441248]
[1765392662883,3.2078,3400.0,3399.4,3.2078]
[1765392663085,0.00347889,3400.2,3400.1,0.14705]
[1765392663289,0.91241086,3400.2,3400.0,0.14706]
[1765392663485,0.90893197,3400.1,3400.0,0.14706]
[1765392664388,0.90893197,3400.1,3399.2,0.00343411]
[1765392664389,6.90893197,3400.1,3399.2,0.00343411]
[1765392664582,6.90893197,3400.1,3399.3,0.14709]
[1765392664583,3.2078,3399.4,3399.3,0.14709]
[1765392664890,4.11673197,3399.4,3399.3,0.14709]
[1765392665095,3.2078,3399.8,3399.7,0.14707]
[1765392665389,4.10878686,3399.8,3399.7,0.14707]
[1765392666889,6.62230467,3399.8,3399.2,0.00343411]
[1765392667192,2.47446289,3399.7,3399.2,0.00343411]
[1765392667392,2.47446289,3399.6,3399.2,0.00343411]
[1765392667595,3.2078,3399.3,3399.2,0.00343411]
[1765392667794,4.10878686,3399.3,3399.2,0.15052411]
[1765392668195,4.10878686,3399.3,3399.2,0.12158801]
[1765392668582,0.90098686,3399.3,3399.2,0.12158801]
[1765392668995,4.10878686,3399.3,3399.2,0.12158801]
[1765392669194,4.10878686,3399.3,3399.2,0.12409898]
[1765392670094,4.10878686,3399.3,3399.1,0.1471]
[1765392670095,2.0307,3399.2,3399.1,0.1471]
[1765392670392,2.93168686,3399.2,3399.1,0.1471]
[1765392670590,5.13947561,3399.2,3398.5,3.2078]
[1765392670791,2.0307,3397.8,3397.1,0.14718]
[1765392670992,2.20778875,3397.6,3397.1,0.15078231]
[1765392671189,0.90098686,3397.7,3397.1,0.15078231]
[1765392671190,0.90098686,3397.5,3397.1,0.00360231]
[1765392671497,2.0307,3396.8,3395.3,0.22656133]
[1765392671791,3.2078,3396.1,3395.5,3.2078]
[1765392671992,0.89944257,3396.0,3395.9,0.14723]
[1765392672192,4.10724257,3396.0,3395.2,3.2078]
[1765392672400,4.10724257,3396.0,3395.2,0.00321322]
[1765392672401,6.97698612,3395.6,3395.2,0.00321322]
[1765392672593,6.97698612,3395.6,3393.9,9.19436325]
[1765392672594,1.56139737,3395.3,3393.9,3.2078]
[1765392672888,3.2078,3394.5,3394.4,0.1473]
[1765392673094,4.10724257,3394.5,3394.4,0.1473]
[1765392673687,4.11095233,3394.5,3394.4,0.15069235]
[1765392674796,3.2078,3394.9,3394.8,0.14728]
[1765392675195,3.2078,3395.4,3395.3,0.14726]
[1765392675895,4.76568473,3395.4,3395.3,0.14726]
[1765392676195,3.21013791,3395.4,3394.4,0.00339235]
[1765392676491,0.00233791,3395.4,3395.3,0.14726]
[1765392676691,3.21013791,3395.4,3395.3,0.14726]
[1765392680094,9.21013791,3395.4,3394.6,0.14729]
[1765392680402,5.41558875,3394.7,3393.8,0.14732]
[1765392680601,3.2078,3393.9,3393.8,0.14733]
[1765392681491,3.2078,3393.9,3393.8,0.14942628]
[1765392681693,3.2078,3393.9,3392.2,2.20778875]
[1765392681694,10.8271,3393.9,3392.9,0.14736]
[1765392681890,3.2078,3393.0,3392.1,5.4163]
[1765392682098,0.00441923,3392.9,3392.1,5.4163]
[1765392682498,0.00441923,3392.9,3392.1,2.2085]
[1765392682694,0.00685452,3392.9,3392.2,3.2078]
[1765392682893,0.00685452,3392.9,3392.8,0.14737]
[1765392684301,3.21465452,3392.9,3392.8,0.14737]
[1765392686806,4.10192385,3392.9,3392.8,0.14737]
[1765392688508,4.10192385,3392.9,3392.8,6.14737]
[1765392688711,3.69144669,3393.9,3392.8,6.14737]
[1765392688712,3.2078,3393.3,3393.2,0.14735]
[1765392689009,0.57310975,3393.3,3393.2,0.14735]
[1765392689205,2.1362,3392.8,3392.1,0.0026029]
[1765392689408,3.2078,3392.3,3392.2,0.14739]
[1765392689598,3.21142186,3392.3,3392.2,0.14739]
[1765392689908,4.76671513,3392.3,3391.9,0.00441923]
[1765392690511,4.76671513,3392.3,3392.0,3.20779374]
[1765392690512,3.21142186,3392.3,3392.0,3.20779374]
[1765392690806,3.21142186,3392.3,3392.2,0.14739]
[1765392691004,3.21142186,3392.3,3392.2,0.15120306]
[1765392692108,0.00441923,3392.6,3392.5,0.14738]
[1765392692109,9.23e-06,3392.6,3392.5,0.14738]
[1765392692609,4.27993544,3394.2,3392.5,0.14738]
[1765392692610,3.2078,3393.1,3392.5,6.0]
[1765392692819,3.2078,3393.5,3392.3,3.2078]
[1765392693008,3.2078,3393.1,3392.3,10.845]
[1765392693305,0.00294069,3393.5,3393.0,0.14736]
[1765392693509,3.2078,3393.1,3393.0,0.14736]
[1765392694706,3.2078,3393.1,3393.0,3.35515374]
[1765392695409,3.2078,3393.1,3393.0,0.14736]
[1765392695614,3.2078,3393.1,3393.0,3.35515374]
[1765392698011,2.40905609,3393.1,3393.0,9.35515374]
[1765392698217,0.00294069,3393.5,3393.4,0.14734]
[1765392698909,9.92e-06,3393.6,3393.5,0.14734]
[1765392699211,3.2078,3394.4,3394.3,0.1473]
[1765392699614,5.83026005,3394.4,3393.8,3.2078]
[1765392699816,2.09330366,3394.0,3393.9,0.14732]
[1765392700008,2.09574961,3394.0,3393.9,0.14732]
[1765392700213,0.00244595,3394.0,3393.9,3.35511374]
[1765392700817,1.57658317,3394.0,3393.9,3.35511374]
[1765392701008,2.38482458,3394.0,3393.9,3.35511374]
[1765392701210,0.81068736,3394.0,3393.9,3.35511374]
[1765392702015,3.21024595,3394.0,3393.9,3.35511374]
[1765392702217,3.9352529,3394.0,3393.9,3.35511374]
[1765392702611,0.00244595,3394.0,3393.9,3.35511374]
[1765392703819,0.00244595,3394.0,3393.9,12.56291374]
[1765392704018,0.00244595,3394.0,3393.9,11.56290249]
[1765392704411,5.18e-06,3394.3,3394.2,0.14731]
[1765392704619,5.18e-06,3394.3,3394.2,3.35511]
[1765392705515,0.00301231,3394.3,3394.2,3.35511]
[1765392705814,0.00301231,3394.3,3394.2,0.14731]
[1765392707512,3.2078,3395.4,3394.5,2.20778875]
[1765392707715,3.2078,3395.4,3395.3,0.14726]
[1765392708507,3.2078,3395.4,3394.4,3.2078]
[1765392708508,3.21032396,3395.4,3394.4,3.2078]
[1765392708709,3.21032396,3395.4,3395.3,0.14726]
[1765392709111,2.88585396,3395.4,3395.3,0.14726]
[1765392709317,0.00441923,3395.7,3395.6,0.14725]
[1765392709615,0.00441923,3395.7,3395.6,12.36025]
[1765392709811,9.23e-06,3395.7,3395.6,18.36025]
[1765392710215,0.00262219,3395.7,3395.6,12.36290858]
[1765392710515,3.2078,3396.9,3396.7,0.1472]
[1765392710816,2.1362,3397.1,3397.0,0.14719]
[1765392711520,2.13827195,3397.1,3397.0,0.14719]
[1765392712419,2.13827195,3397.1,3395.9,3.2078]
[1765392712420,8.13827195,3397.1,3395.9,3.2078]
[1765392712615,3.2078,3396.6,3395.9,6.41559374]
[1765392712815,0.00207195,3397.1,3397.0,0.14719]
[1765392713621,0.00207195,3397.1,3397.0,3.35498374]
[1765392716525,0.00441923,3397.4,3397.3,0.14717]
[1765392716825,9.23e-06,3397.4,3397.3,5.56275875]
[1765392717025,9.23e-06,3397.4,3397.3,3.35497]
[1765392717430,0.00287353,3397.4,3397.3,3.35497]
[1765392718318,3.2078,3398.4,3398.3,0.14713]
[1765392718528,3.2078,3398.8,3398.7,0.14711]
[1765392718920,10.411,3398.8,3398.7,0.14711]
[1765392719423,10.41480081,3398.8,3398.7,0.15039461]
[1765392719629,16.41480081,3398.8,3397.4,3.2078]
[1765392719827,7.2032,3398.1,3398.0,0.14714]
[1765392720127,3.2078,3398.2,3398.1,0.14714]
[1765392720329,3.4976,3398.2,3398.1,0.14714]
[1765392720528,2.1928,3398.5,3398.4,0.14713]
[1765392720529,9.396,3398.5,3398.4,0.14713]
[1765392720725,5.6904,3398.5,3398.4,0.14713]
[1765392721027,0.00380081,3398.8,3398.1,0.00318891]
[1765392721222,7.20700081,3398.8,3398.7,0.14711]
[1765392721821,3.50140081,3398.8,3398.7,0.14711]
[1765392722624,0.00380081,3398.8,3398.7,7.34921]
[1765392723024,8.1e-07,3398.8,3398.7,9.55699875]
[1765392724627,0.00287256,3399.1,3399.0,7.3492]
[1765392724926,0.00287256,3399.1,3399.0,24.95778875]
[1765392725533,0.00604162,3399.1,3399.0,24.95778875]
[1765392726027,3.2078,3399.9,3399.8,0.14707]
[1765392726330,12.6038,3399.9,3399.8,0.14707]
[1765392727132,12.60707688,3399.9,3399.8,0.14707]
[1765392728724,0.00327688,3399.9,3399.8,7.34917]
[1765392728925,2.1928,3401.3,3399.5,5.41558875]
[1765392728926,3.2078,3400.7,3399.5,5.41558875]
[1765392729227,3.10567006,3400.7,3400.6,9.55691875]
[1765392729429,7.2032,3401.7,3400.6,19.25648875]
[1765392729625,7.2032,3401.8,3401.7,0.14698]
[1765392729825,7.20564671,3401.8,3401.7,0.14975856]
[1765392730026,7.20564671,3401.8,3401.7,3.3575523]
[1765392730432,16.41344671,3401.8,3401.7,0.00277856]
[1765392730627,3.4976,3401.3,3401.2,0.147]
[1765392730830,3.4976,3401.5,3401.4,0.147]
[1765392731032,7.2032,3401.5,3401.4,3.35479374]
[1765392731433,7.2032,3401.4,3401.3,3.2078]
[1765392731634,7.2032,3401.4,3401.3,0.00259305]
[1765392731829,7.2032,3401.2,3401.1,0.14701]
[1765392732331,7.2032,3401.2,3400.8,0.00441248]
[1765392732332,7.2032,3400.9,3400.8,0.00441248]
[1765392732738,3.4976,3400.9,3400.8,3.35922622]
[1765392733030,3.4976,3401.7,3401.6,0.14699]
[1765392733628,7.2032,3401.7,3401.6,0.14699]
[1765392734029,7.2032,3401.7,3401.6,3.35478374]
[1765392737330,7.95834666,3401.7,3401.6,3.35478374]
[1765392738032,7.95834666,3401.7,3401.6,3.20779374]
[1765392738236,7.1014,3400.9,3400.8,0.00774233]
[1765392738533,3.2078,3401.6,3401.5,0.14699]
[1765392738839,3.55234671,3401.8,3401.7,0.14698]
[1765392739132,7.10384671,3401.8,3401.7,0.14698]
[1765392739526,3.55234671,3401.8,3401.7,0.14698]
[1765392739726,7.10384671,3401.8,3401.7,0.14698]
[1765392740338,7.10384671,3401.8,3400.8,0.00774233]
[1765392740339,7.1014,3401.2,3400.8,0.00774233]
[1765392740632,3.5499,3401.2,3400.8,0.00774233]
[1765392741035,10.3092,3401.7,3401.6,0.14699]
[1765392741236,11.05325878,3401.7,3401.6,0.14699]
[1765392741833,7.1014,3400.9,3400.8,0.00774233]
[1765392742741,7.1014,3400.9,3400.8,0.15476233]
[1765392743135,7.84656398,3400.9,3400.8,0.15476233]
[1765392744340,7.1014,3400.7,3400.6,3.06284557]
[1765392744536,7.84656398,3400.7,3400.6,3.06284557]
[1765392745138,4.29506398,3400.7,3400.6,3.20987557]
[1765392745344,4.29506398,3400.7,3400.6,3.21244472]
[1765392745540,0.74516398,3400.7,3400.6,7.03514472]
[1765392745839,0.74516398,3400.9,3400.8,0.14702]
[1765392746043,0.7400908,3400.9,3400.6,3.06541472]
[1765392746236,0.00438995,3401.0,3400.9,7.62422]
[1765392746643,7.84644664,3401.0,3400.9,0.14702]
[1765392746844,3.55428995,3401.0,3400.9,0.14702]
[1765392747045,0.00438995,3401.0,3400.9,7.62422]
[1765392748142,0.73153197,3401.6,3401.5,7.47749]
[1765392748347,0.00244671,3401.8,3401.7,3.74208]
[1765392748537,0.73426278,3401.8,3401.7,6.94988]
[1765392749039,11.02246005,3403.2,3402.6,3.5951]
[1765392749040,1.57413722,3403.0,3402.6,3.5951]
[1765392749243,3.2078,3403.2,3403.0,0.14693]
[1765392749244,7.0876,3403.1,3403.0,0.14693]
[1765392749444,8.66173722,3403.1,3403.0,0.14693]
[1765392749645,2.09884963,3403.5,3402.5,0.00441248]
[1765392749646,1.57413722,3403.5,3403.4,3.5951]
[1765392749942,7.0876,3403.6,3403.5,0.1469]
[1765392750133,7.09064424,3403.6,3403.5,0.1469]
[1765392750336,7.0876,3403.5,3402.5,3.21221248]
[1765392750542,6.00304424,3403.6,3403.0,0.14692]
[1765392750543,7.0876,3403.1,3403.0,0.14692]
[1765392751341,7.0876,3403.1,3403.0,0.15035872]
[1765392751845,7.0876,3403.1,3402.5,3.21221248]
[1765392752040,7.0876,3402.6,3402.5,0.00441248]
[1765392752447,7.0876,3402.6,3402.5,0.15136248]
[1765392752942,7.0876,3402.6,3402.5,0.15351905]
[1765392753448,3.6007,3401.9,3401.8,0.14698]
[1765392754042,7.0876,3401.9,3401.8,0.14698]
[1765392754449,7.0876,3401.9,3401.8,0.15006816]
[1765392759351,0.00441248,3402.2,3401.8,0.00308816]
[1765392759652,0.00441248,3402.2,3402.1,7.24987]
[1765392760056,10.2954,3403.0,3402.9,0.14693]
[1765392760559,7.0876,3403.0,3402.9,0.14693]
[1765392760867,10.2954,3403.0,3402.9,0.14693]
[1765392761066,7.79400648,3403.0,3402.4,3.2078]
[1765392761266,0.70640648,3402.9,3402.4,3.2078]
[1765392761465,7.0876,3403.0,3402.9,0.14693]
[1765392761764,7.78831188,3403.0,3402.9,0.14693]
[1765392762164,0.70071188,3403.0,3402.9,0.14693]
[1765392762365,4.8116,3403.4,3403.2,0.14692]
[1765392762366,7.0876,3403.3,3403.2,0.14692]
[1765392762568,7.78316204,3403.3,3403.2,0.14692]
[1765392763261,0.69556204,3403.3,3403.2,7.24982]
[1765392763459,7.09064424,3403.6,3403.5,0.14691]
[1765392763656,7.78596245,3403.6,3403.5,0.14691]
[1765392764268,7.09064424,3403.6,3403.5,0.14691]
[1765392764468,7.78564579,3403.6,3403.5,0.14691]
[1765392765767,7.78564579,3403.6,3403.5,1e-05]
[1765392766268,7.78564579,3403.6,3403.5,0.14692]
[1765392766664,7.0876,3403.3,3403.2,0.00441248]
[1765392766864,7.0876,3402.9,3402.8,0.14693]
[1765392767062,7.78260155,3402.9,3402.8,0.14693]
[1765392767262,10.99040155,3402.9,3402.8,0.14693]
[1765392767968,10.2954,3402.9,3402.8,0.14693]
[1765392768167,11.02778197,3402.9,3402.8,0.14693]
[1765392768367,10.2954,3402.9,3402.8,0.14693]
[1765392769872,11.02788596,3402.9,3402.8,0.14693]
[1765392770075,7.0876,3402.6,3402.5,0.00441248]
[1765392770574,7.0876,3402.6,3402.0,3.2078]
[1765392770575,7.0876,3402.1,3402.0,3.2078]
[1765392770975,3.2078,3402.5,3402.0,3.2078]
[1765392771277,7.0876,3402.9,3402.8,0.14694]
[1765392771670,7.82025442,3402.9,3402.8,0.14694]
[1765392772672,7.0876,3402.6,3402.5,0.00441248]
[1765392772875,10.2954,3402.6,3402.5,0.00441248]
[1765392773086,10.2954,3402.6,3402.5,0.15136248]
[1765392773276,7.0876,3402.6,3402.5,0.15136248]
[1765392773671,10.2954,3402.6,3402.5,0.00441248]
[1765392773872,7.0876,3402.2,3402.1,0.14696]
[1765392774071,10.2954,3402.2,3402.1,0.14696]
[1765392774579,7.0876,3401.9,3401.8,0.00308816]
[1765392775070,7.82136806,3401.9,3401.8,0.00308816]
[1765392775369,7.0876,3401.9,3401.8,0.00308816]
[1765392776471,7.0876,3401.6,3401.5,0.34105248]
[1765392777069,7.0876,3401.6,3401.5,0.48804248]
[1765392777378,7.0876,3401.6,3401.5,0.49080415]
[1765392778072,7.0876,3401.6,3400.6,2.2483]
[1765392778073,6.6552,3400.9,3400.8,0.14702]
[1765392779076,6.65864539,3400.9,3400.8,0.14996854]
[1765392779773,6.6552,3400.3,3400.2,0.14705]
[1765392779974,9.863,3400.3,3400.2,0.14705]
[1765392780175,6.6552,3400.3,3400.2,0.14705]
[1765392780370,9.863,3400.7,3400.6,0.14703]
[1765392780569,9.863,3400.7,3400.6,0.15038742]
[1765392780872,3.3545,3400.4,3400.3,0.00441248]
[1765392781071,3.2078,3400.7,3400.5,0.14704]
[1765392781268,0.00344539,3400.9,3400.4,3.2078]
[1765392781475,0.00344539,3400.9,3400.8,0.14702]
[1765392781670,0.00344539,3400.9,3400.8,12.13322]
[1765392781876,0.00344539,3400.9,3400.8,8.92882492]
[1765392782076,6.65864539,3400.9,3400.8,0.15042492]
[1765392782478,6.6552,3400.4,3400.3,0.00441248]
[1765392782978,6.6552,3400.4,3400.3,0.15145248]
[1765392783473,3.3545,3399.6,3399.5,3.35487]
[1765392783674,6.6552,3399.6,3399.5,0.14707]
[1765392783873,9.863,3399.6,3399.5,0.14707]
[1765392784076,3.2078,3399.6,3398.5,3.2078]
[1765392784484,3.2078,3399.6,3399.2,0.14709]
[1765392784686,6.6552,3399.3,3399.2,0.14709]
[1765392787789,3.3545,3399.3,3399.2,0.14709]
[1765392788086,6.6244,3399.3,3399.2,0.14709]
[1765392788580,3.3545,3399.3,3399.2,0.14709]
[1765392788978,6.6244,3399.3,3399.2,0.14709]
[1765392790786,6.6244,3399.3,3398.7,0.00294164]
[1765392790787,6.5221,3398.8,3398.7,0.00294164]
[1765392791091,3.25661248,3399.4,3399.3,0.14709]
[1765392791589,6.52651248,3399.4,3399.3,0.14709]
[1765392791983,6.52651248,3399.4,3398.8,3.2078]
[1765392792183,6.5221,3398.9,3398.8,3.35491]
[1765392792888,6.5221,3398.9,3398.8,0.14711]
[1765392793486,6.5221,3398.9,3397.3,0.14717]
[1765392793487,6.5221,3397.4,3397.3,0.14717]
[1765392793687,6.5221,3396.9,3396.8,0.14719]
[1765392793986,9.7299,3396.9,3396.8,0.14719]
[1765392794189,9.7299,3396.9,3396.8,3.35499]
[1765392794391,9.73241086,3396.9,3396.8,3.35865801]
[1765392795492,3.2078,3397.4,3397.3,3.36147]
[1765392795692,9.7299,3397.4,3397.3,0.14717]
[1765392795888,9.7299,3397.4,3397.3,3.35497]
[1765392796486,9.73340506,3397.4,3397.3,3.35497]
[1765392796680,6.5221,3397.1,3397.0,0.00441248]
[1765392796889,6.5221,3397.1,3397.0,3.21221248]
[1765392797085,3.2522,3397.1,3397.0,3.21221248]
[1765392797391,3.21130506,3397.4,3397.3,0.14717]
[1765392797693,9.73340506,3397.4,3397.3,3.35497]
[1765392799595,6.5221,3397.1,3397.0,0.00441248]
[1765392799796,8.4871,3397.1,3397.0,0.00441248]
[1765392800386,6.5221,3396.9,3395.5,3.2078]
[1765392800591,1.965,3397.1,3395.6,3.2078]
[1765392800592,3.2078,3396.0,3395.6,3.2078]
[1765392800791,3.2078,3396.0,3395.9,3.36153]
[1765392800996,6.5321,3396.2,3396.1,0.14723]
[1765392801391,0.01,3396.2,3396.1,3.36408878]
[1765392801598,0.01,3396.2,3396.1,6.85438878]
[1765392802398,0.01,3396.2,3396.1,3.36408878]
[1765392803096,3.2622,3396.2,3396.1,0.14978878]
[1765392803398,6.5321,3396.2,3396.1,0.14978878]
[1765392804395,6.5321,3396.2,3396.1,3.35758878]
[1765392805096,6.5221,3395.1,3393.8,3.2078]
[1765392805296,3.21221248,3394.8,3394.7,3.2143]
[1765392805499,3.2078,3395.3,3395.2,6.85186]
[1765392805802,0.01,3395.3,3395.2,3.36156]
[1765392805999,0.01345146,3395.3,3395.2,6.85186]
[1765392806197,0.01345146,3395.3,3394.3,15.80204055]
[1765392806198,3.2522,3394.7,3393.5,3.2078]
[1765392806497,3.25661936,3394.5,3394.4,0.1473]
[1765392806690,3.25661936,3394.5,3393.8,0.00441936]
[1765392806691,6.5221,3394.2,3394.1,0.14731]
[1765392806894,6.5221,3393.9,3393.8,0.00441936]
[1765392807099,10.5171434,3393.9,3393.8,0.00441936]
[1765392807700,10.5271434,3393.9,3393.8,0.00441936]
[1765392808398,10.5271434,3393.9,3391.8,3.2078]
[1765392808399,10.0050434,3393.9,3391.8,3.2078]
[1765392808597,3.2078,3392.6,3392.2,1.9023]
[1765392808904,0.01,3392.4,3392.0,3.2078]
[1765392809300,3.2078,3392.1,3391.5,0.29781341]
[1765392809504,3.21128302,3392.1,3392.0,3.2078]
[1765392809700,4.00657345,3392.1,3392.0,3.2078]
[1765392810307,4.00657345,3392.1,3392.0,5.2575]
[1765392810308,0.01348302,3392.1,3392.0,5.2575]
[1765392810499,0.01348302,3392.1,3392.0,3.3552]
[1765392810899,0.01348302,3392.1,3392.0,5.2575]
[1765392811094,2.22162357,3392.1,3391.5,0.15039341]
[1765392811294,0.01348302,3392.1,3392.0,3.2078]
[1765392811500,3.22128302,3392.1,3391.5,0.15039341]
[1765392811803,3.2078,3391.6,3391.5,0.15039341]
[1765392812294,0.01,3391.8,3391.7,0.14742]
[1765392813901,0.01,3391.8,3391.7,6.81112]
[1765392814304,0.01,3391.8,3391.7,3.2078]
[1765392814610,3.3511,3391.8,3391.7,3.2078]
[1765392814904,6.654,3391.8,3391.7,3.35522]
[1765392815106,6.644,3391.6,3391.5,0.15039341]
[1765392815406,6.644,3391.6,3391.5,3.35819341]
[1765392815407,9.8518,3391.6,3391.5,3.35819341]
[1765392815601,11.41594055,3391.6,3389.7,3.2078]
[1765392815909,3.2078,3390.6,3389.4,3.2078]
[1765392816202,0.00441936,3390.4,3390.1,1.9023]
[1765392816403,0.00441936,3390.4,3390.3,3.35528]
[1765392816611,0.00441936,3390.4,3390.3,0.14748]
[1765392816798,0.01441936,3390.4,3390.3,0.14748]
[1765392818000,6.01441936,3390.4,3389.7,0.1475]
[1765392818307,3.2078,3389.8,3389.7,0.1475]
[1765392818904,3.2178,3389.8,3389.7,0.1475]
[1765392819103,0.01,3389.8,3389.7,0.1475]
[1765392819507,3.2178,3389.8,3389.7,0.1475]
[1765392819704,0.02,3389.8,3389.6,5.1101]
[1765392820100,0.00441936,3390.4,3389.6,11.1101]
[1765392820409,0.00441936,3390.4,3389.6,1.9023]
[1765392820607,0.85599394,3390.4,3390.3,0.14748]
[1765392820807,3.21221936,3390.4,3390.3,0.14748]
[1765392821009,4.06379394,3390.4,3390.3,0.14748]
[1765392821208,3.67144407,3392.0,3390.3,0.14748]
[1765392821209,1.56969199,3392.1,3391.2,1.9023]
[1765392821509,0.85135526,3392.0,3391.7,0.14742]
[1765392821904,0.85135526,3392.0,3391.9,0.14741]
[1765392823298,0.00441936,3392.3,3392.2,0.14739]
[1765392823704,0.86112718,3392.3,3392.2,0.14739]
[1765392824123,4.06892718,3392.3,3392.2,0.14739]
[1765392824410,12.28089743,3392.3,3391.6,0.00441936]
[1765392824710,3.2078,3391.7,3391.2,0.14744]
[1765392824915,0.85670782,3391.6,3391.2,0.14744]
[1765392825103,0.85670782,3391.5,3391.2,0.14744]
[1765392825309,0.85670782,3391.4,3391.2,0.14744]
[1765392825607,4.06450782,3391.3,3390.3,3.2078]
[1765392825807,0.85670782,3391.2,3390.3,3.2078]
[1765392826105,0.85670782,3391.1,3390.3,3.2078]
[1765392826310,0.85670782,3391.0,3390.6,0.14746]
[1765392826514,0.85670782,3390.9,3390.6,0.14746]
[1765392826806,0.85670782,3390.8,3390.6,0.14746]
[1765392827014,1.55617332,3390.9,3390.6,0.14746]
[1765392827015,0.85670782,3390.7,3390.6,0.14746]
[1765392830816,2.42168755,3390.7,3390.6,0.14746]
[1765392831417,0.85670782,3390.7,3390.6,0.14746]
[1765392831614,6.85670782,3390.7,3389.9,3.2078]
[1765392831810,3.2078,3390.0,3389.3,0.14752]
[1765392832021,1.56724207,3389.4,3389.3,0.14752]
[1765392832219,2.42632224,3389.4,3389.3,0.14752]
[1765392832415,0.85908017,3389.4,3389.3,0.14752]
[1765392833118,0.85908017,3389.4,3388.6,3.2078]
[1765392833119,6.85908017,3389.4,3388.6,3.2078]
[1765392833312,6.85908017,3389.4,3387.2,5.93667774]
[1765392833313,3.2078,3389.0,3388.8,0.00110925]
[1765392833518,3.2078,3389.0,3387.7,0.14759]
[1765392833519,0.85670782,3388.9,3387.7,0.14759]
[1765392833818,1.57140159,3387.8,3387.7,0.14759]
[1765392834013,0.85670782,3387.8,3387.4,3.2078]
[1765392834324,0.85670782,3387.8,3386.7,3.2078]
[1765392834325,3.2078,3387.5,3386.7,3.2078]
[1765392834516,3.2078,3387.5,3386.1,0.38626441]
[1765392834517,5.41594055,3387.1,3386.1,0.23860441]
[1765392834714,3.2078,3386.3,3385.4,0.14769]
[1765392834921,2.09771456,3385.6,3385.4,0.14769]
[1765392835216,0.85670782,3385.5,3384.7,3.35552]
[1765392835419,2.09771456,3385.1,3384.7,3.35552]
[1765392835624,0.85670782,3385.0,3384.7,3.2078]
[1765392835816,0.85670782,3384.9,3383.8,0.14776]
[1765392836023,1.57110141,3384.1,3383.8,0.14776]
[1765392836213,0.85670782,3384.0,3383.8,0.15000527]
[1765392836413,0.30683588,3383.9,3383.8,0.15000527]
[1765392836620,0.00443269,3384.3,3384.0,1.9023]
[1765392836822,0.00754121,3384.3,3384.1,0.14775]
[1765392837025,0.00754121,3384.3,3383.8,0.00224527]
[1765392837026,3.21534121,3384.3,3383.8,0.00224527]
[1765392838020,3.2078,3384.9,3384.0,1.8969]
[1765392838220,3.2078,3384.9,3384.5,0.14773]
[1765392839132,3.21117351,3384.9,3384.4,0.00443269]
[1765392839324,3.2078,3384.5,3384.4,0.00443269]
[1765392839628,3.21117351,3384.9,3384.4,0.00443269]
[1765392840121,3.21117351,3384.9,3384.6,0.14772]
[1765392841024,3.21117351,3384.9,3384.4,0.00443269]
[1765392841226,0.00337351,3384.9,3384.8,0.14772]
[1765392841621,3.21117351,3384.9,3384.8,0.14772]
[1765392842332,0.00337351,3384.9,3384.8,0.14772]
[1765392842630,3.2078,3385.3,3385.2,0.1477]
[1765392842831,3.2078,3386.0,3385.8,0.14767]
[1765392843030,3.2078,3386.4,3386.0,0.14766]
[1765392843223,3.2078,3386.4,3386.3,0.14765]
[1765392843528,3.2078,3387.3,3386.7,1.8969]
[1765392843730,3.21540247,3387.3,3387.1,0.14761]
[1765392843928,0.00760247,3387.3,3387.2,3.35541]
[1765392844134,0.00760247,3387.3,3386.7,7.8969]
[1765392844135,3.2078,3388.3,3387.8,0.14759]
[1765392844631,3.2078,3388.3,3387.6,1.8969]
[1765392844632,3.2078,3388.3,3387.9,0.14758]
[1765392844928,3.2078,3388.3,3388.1,0.14757]
[1765392845132,2.4106,3388.2,3388.1,0.14757]
[1765392845334,0.00443269,3388.5,3388.1,6.14757]
[1765392845522,0.00443269,3388.5,3388.1,0.14757]
[1765392845728,0.00443269,3388.5,3388.2,3.2078]
[1765392845928,0.00443269,3388.5,3388.4,0.14756]
[1765392846132,3.2078,3389.5,3389.1,0.14753]
[1765392846331,3.2078,3389.5,3388.5,1.8969]
[1765392846332,3.2078,3389.5,3388.2,3.2078]
[1765392846628,3.2078,3388.5,3388.2,0.00219455]
[1765392848535,0.82281862,3388.4,3388.2,0.00219455]
[1765392849937,3.2078,3388.5,3388.2,0.00219455]
[1765392850342,3.2078,3388.5,3388.4,0.14756]
[1765392851434,3.2078,3388.5,3388.2,0.00219455]
[1765392851742,3.2078,3388.5,3388.2,0.14976455]
[1765392851943,0.00442602,3388.7,3388.4,3.2078]
[1765392852339,0.00442602,3388.7,3388.6,0.14755]
[1765392852940,0.00442602,3388.7,3388.6,6.14755]
[1765392853135,3.2078,3389.2,3388.6,6.14755]
[1765392853339,0.00238734,3389.5,3388.2,3.5396742]
[1765392853340,0.00238734,3389.5,3389.0,4.9303]
[1765392853542,0.00238734,3389.5,3389.4,3.35532]
[1765392853844,0.00238734,3389.5,3389.4,9.35532]
[1765392854253,0.00442602,3389.8,3389.4,9.35532]
[1765392854254,0.81357727,3390.3,3389.4,3.2078]
[1765392854550,0.81357727,3390.2,3389.5,3.2078]
[1765392854746,0.81357727,3390.1,3389.5,3.2078]
[1765392854947,0.81357727,3390.0,3389.5,3.2078]
[1765392855159,3.2078,3389.6,3389.1,3.2078]
[1765392855447,0.81357727,3389.5,3388.7,3.2078]
[1765392855640,3.2078,3389.2,3388.5,0.14756]
[1765392855840,0.81357727,3389.1,3388.5,0.14756]
[1765392856044,2.81127727,3389.0,3388.2,3.08238802]
[1765392856350,0.14757,3388.2,3387.0,3.2078]
[1765392856555,3.2078,3387.8,3387.0,3.2078]
[1765392856853,0.81357727,3387.7,3387.0,3.2078]
[1765392857049,0.81357727,3387.6,3387.0,3.21125778]
[1765392857352,0.81357727,3387.6,3387.0,3.3633038]
[1765392857353,0.81357727,3387.5,3387.0,3.3633038]
[1765392857549,0.81357727,3387.4,3387.0,3.3633038]
[1765392857754,0.81357727,3387.3,3387.0,0.0078838]
[1765392857962,0.81357727,3387.2,3387.0,0.0078838]
[1765392858253,0.81357727,3387.2,3385.8,3.198]